bitfinex-derivatives/quotes_BTCF0:USTF0_20241224
["timestamp","ask_amount","ask_price","bid_price","bid_amount"]
[1735019303143,0.09523451,94532.0,94531.0,0.04055627]
[1735019304040,0.09523451,94532.0,94531.0,0.04355627]
[1735019304542,0.09623451,94532.0,94531.0,0.003]
[1735019305537,0.001,94532.0,94531.0,0.25587588]
[1735019305941,0.053958,94532.0,94531.0,0.25587588]
[1735019307133,0.1809311,94532.0,94531.0,0.003]
[1735019308747,0.001,94532.0,94531.0,0.003]
[1735019308946,0.001,94532.0,94531.0,0.04356647]
[1735019309146,0.001,94532.0,94531.0,0.003]
[1735019310347,5.855e-05,94534.0,94531.0,0.003]
[1735019310649,5.855e-05,94534.0,94531.0,0.004]
[1735019310833,0.12700259,94533.0,94531.0,0.004]
[1735019312549,0.12706114,94534.0,94531.0,0.004]
[1735019314042,0.052957,94533.0,94531.0,0.004]
[1735019314944,5.855e-05,94534.0,94527.0,0.31479732]
[1735019315151,0.052958,94532.0,94531.0,0.25702625]
[1735019315550,0.052958,94532.0,94531.0,0.25602625]
[1735019316236,0.052958,94532.0,94531.0,0.003]
[1735019317050,0.052958,94532.0,94527.0,0.004]
[1735019317550,0.052958,94532.0,94531.0,0.003]
[1735019317749,0.053958,94532.0,94531.0,0.003]
[1735019318144,0.053958,94532.0,94527.0,0.004]
[1735019318347,0.052958,94532.0,94527.0,0.004]
[1735019318851,0.052958,94532.0,94531.0,0.003]
[1735019319953,0.053958,94532.0,94531.0,0.003]
[1735019320450,0.053958,94532.0,94527.0,0.004]
[1735019320649,0.053958,94532.0,94528.0,0.04058862]
[1735019320855,0.053958,94532.0,94531.0,0.003]
[1735019321550,0.052958,94532.0,94531.0,0.003]
[1735019323158,0.053958,94532.0,94531.0,0.003]
[1735019325440,0.18097831,94532.0,94531.0,0.003]
[1735019327452,0.12802031,94532.0,94531.0,0.003]
[1735019328245,0.12802031,94532.0,94531.0,0.04358316]
[1735019328246,0.06662031,94532.0,94531.0,0.04358316]
[1735019328850,0.06662031,94532.0,94531.0,0.08430184]
[1735019329447,5.855e-05,94534.0,94531.0,0.08430184]
[1735019329647,5.855e-05,94534.0,94532.0,0.17314116]
[1735019329847,5.855e-05,94534.0,94533.0,0.04058316]
[1735019330653,5.855e-05,94534.0,94533.0,0.08130184]
[1735019331356,0.02785582,94539.0,94538.0,0.052954]
[1735019331551,0.02785582,94539.0,94538.0,0.45433716]
[1735019332143,0.15812691,94557.0,94544.0,0.052951]
[1735019332347,0.15812691,94557.0,94549.0,0.3608]
[1735019332547,0.15812691,94557.0,94550.0,0.081]
[1735019333547,0.16212691,94557.0,94550.0,0.081]
[1735019333749,0.008,94557.0,94554.0,0.18944999]
[1735019333949,0.02003798,94557.0,94554.0,0.18944999]
[1735019334256,0.008,94557.0,94554.0,0.18944999]
[1735019335155,0.008,94557.0,94551.0,0.18944999]
[1735019335845,0.02055115,94557.0,94551.0,0.18944999]
[1735019336053,0.009,94557.0,94551.0,0.18944999]
[1735019336256,0.011,94557.0,94550.0,0.27044999]
[1735019336749,0.004,94557.0,94550.0,0.27044999]
[1735019336944,0.008,94557.0,94550.0,0.27044999]
[1735019337653,0.008,94557.0,94550.0,0.081]
[1735019339855,0.060944,94557.0,94550.0,0.081]
[1735019340057,0.052945,94556.0,94550.0,0.081]
[1735019340449,0.052947,94551.0,94550.0,0.081]
[1735019340652,0.052947,94551.0,94549.0,0.3608]
[1735019342375,0.059947,94551.0,94549.0,0.3608]
[1735019342767,0.058947,94551.0,94549.0,0.3608]
[1735019343277,0.07125616,94551.0,94549.0,0.3608]
[1735019344378,0.07125616,94551.0,94546.0,0.18944999]
[1735019345271,0.06825616,94551.0,94546.0,0.18944999]
[1735019345477,0.07125616,94551.0,94546.0,0.18944999]
[1735019345680,0.06825616,94551.0,94546.0,0.18944999]
[1735019345983,0.07025616,94551.0,94546.0,0.18944999]
[1735019347367,0.07025616,94551.0,94547.0,0.18944999]
[1735019348382,0.06725616,94551.0,94547.0,0.18944999]
[1735019348584,0.07025616,94551.0,94547.0,0.18944999]
[1735019348775,0.06825616,94551.0,94547.0,0.18944999]
[1735019349083,0.07025616,94551.0,94547.0,0.18944999]
[1735019349985,0.07025616,94551.0,94548.0,0.18944999]
[1735019352575,0.06825616,94551.0,94550.0,0.18944999]
[1735019352780,0.07125616,94551.0,94550.0,0.18944999]
[1735019353674,0.06825616,94551.0,94550.0,0.18944999]
[1735019353874,0.07225616,94551.0,94550.0,0.18944999]
[1735019354483,0.07325616,94551.0,94550.0,0.18944999]
[1735019356775,0.07325616,94551.0,94546.0,0.25259999]
[1735019357775,0.06525616,94551.0,94546.0,0.25259999]
[1735019357982,0.07025616,94551.0,94546.0,0.25259999]
[1735019358186,0.07025616,94551.0,94548.0,0.25259999]
[1735019359483,0.07125616,94551.0,94549.0,0.25259999]
[1735019360476,0.06825616,94551.0,94549.0,0.25259999]
[1735019360681,0.07125616,94551.0,94543.0,0.36870099]
[1735019360887,0.06825616,94551.0,94544.0,0.09347562]
[1735019361191,0.01830916,94551.0,94550.0,0.3608]
[1735019361581,0.01830916,94551.0,94550.0,0.4004]
[1735019361782,0.01730916,94551.0,94550.0,0.4004]
[1735019361983,0.01730916,94551.0,94550.0,0.44092905]
[1735019362684,0.01430916,94551.0,94550.0,0.44092905]
[1735019362894,0.01530916,94551.0,94550.0,0.44092905]
[1735019363391,0.01830916,94551.0,94550.0,0.44092905]
[1735019363888,0.01630916,94551.0,94550.0,0.44092905]
[1735019364088,0.02030916,94551.0,94550.0,0.44092905]
[1735019366983,0.02030916,94551.0,94550.0,0.08012905]
[1735019367192,0.02030916,94551.0,94550.0,0.0396]
[1735019367387,0.052948,94550.0,94547.0,0.31574999]
[1735019368485,0.055948,94550.0,94547.0,0.31574999]
[1735019368896,0.055948,94550.0,94546.0,0.25284208]
[1735019369486,0.057948,94550.0,94546.0,0.25284208]
[1735019369991,0.052948,94550.0,94546.0,0.25284208]
[1735019370298,0.057948,94550.0,94547.0,0.25284208]
[1735019372800,0.057948,94550.0,94548.0,0.25284208]
[1735019373096,0.005,94550.0,94548.0,0.25284208]
[1735019373795,0.057948,94550.0,94548.0,0.25284208]
[1735019373996,0.052948,94550.0,94549.0,0.25284208]
[1735019374188,0.058948,94550.0,94549.0,0.25284208]
[1735019375297,0.058948,94550.0,94548.0,0.25284208]
[1735019375493,0.055948,94550.0,94548.0,0.25284208]
[1735019375702,0.058948,94550.0,94548.0,0.25284208]
[1735019376802,0.055948,94550.0,94548.0,0.25284208]
[1735019377001,0.058948,94550.0,94548.0,0.25284208]
[1735019378193,0.058948,94550.0,94540.0,0.43200073]
[1735019378194,0.058948,94550.0,94549.0,0.25284208]
[1735019379501,0.058948,94550.0,94544.0,0.052951]
[1735019380597,0.055948,94550.0,94544.0,0.052951]
[1735019382498,0.055948,94550.0,94545.0,0.04057833]
[1735019383295,0.055948,94550.0,94549.0,0.25291714]
[1735019383499,0.053948,94550.0,94549.0,0.25291714]
[1735019383699,0.056948,94550.0,94549.0,0.25291714]
[1735019383905,0.057948,94550.0,94549.0,0.25291714]
[1735019385302,0.054948,94550.0,94549.0,0.25291714]
[1735019385604,0.06181247,94550.0,94546.0,0.18342515]
[1735019385801,0.052949,94547.0,94546.0,0.18342515]
[1735019387101,0.054949,94547.0,94546.0,0.18342515]
[1735019387395,0.054949,94547.0,94530.0,0.07056073]
[1735019387396,0.052953,94542.0,94530.0,0.07056073]
[1735019387602,0.052953,94540.0,94531.0,0.04057165]
[1735019388709,0.052953,94540.0,94530.0,0.07056073]
[1735019389106,0.052953,94540.0,94530.0,0.07556073]
[1735019389906,0.052953,94540.0,94531.0,0.04456373]
[1735019390102,0.12688532,94541.0,94531.0,0.004]
[1735019390302,0.19744605,94541.0,94529.0,0.413759]
[1735019390511,0.052955,94537.0,94530.0,0.006]
[1735019392102,0.06468102,94537.0,94531.0,0.004]
[1735019392707,0.06468102,94537.0,94530.0,0.005]
[1735019393011,0.06468102,94537.0,94530.0,0.006]
[1735019394109,0.06468102,94537.0,94531.0,0.004]
[1735019395610,0.06468102,94537.0,94530.0,0.005]
[1735019396215,0.06468102,94537.0,94531.0,0.004]
[1735019397014,0.06468102,94537.0,94530.0,0.006]
[1735019397215,0.06468102,94537.0,94530.0,0.005]
[1735019398414,0.06468102,94537.0,94529.0,0.413759]
[1735019398612,0.06468102,94537.0,94531.0,0.004]
[1735019399118,0.06468102,94537.0,94530.0,0.005]
[1735019399411,0.06468102,94537.0,94530.0,0.006]
[1735019399607,0.06468102,94537.0,94531.0,0.004]
[1735019400200,0.06468102,94537.0,94530.0,0.005]
[1735019401817,0.06468102,94537.0,94531.0,0.004]
[1735019402411,0.06468102,94537.0,94530.0,0.006]
[1735019402810,0.06468102,94537.0,94530.0,0.001]
[1735019403006,0.06468102,94537.0,94531.0,0.004]
[1735019403417,0.06468102,94537.0,94530.0,0.005]
[1735019403917,0.06468102,94537.0,94530.0,0.006]
[1735019405115,0.06468102,94537.0,94531.0,0.004]
[1735019405511,0.06468102,94537.0,94530.0,0.001]
[1735019405715,0.06468102,94537.0,94530.0,0.006]
[1735019406211,0.12688532,94542.0,94537.0,0.052955]
[1735019406408,0.12688532,94542.0,94538.0,0.134054]
[1735019407418,0.1384486,94542.0,94538.0,0.134054]
[1735019407619,0.12688532,94542.0,94538.0,0.134054]
[1735019407819,0.414391,94545.0,94538.0,0.134054]
[1735019407820,0.54127632,94545.0,94538.0,0.134054]
[1735019408120,0.54063632,94545.0,94538.0,0.134054]
[1735019408921,0.54063632,94545.0,94538.0,0.135054]
[1735019409221,0.55261821,94545.0,94538.0,0.135054]
[1735019409422,0.001,94542.0,94538.0,0.135054]
[1735019409626,0.001,94542.0,94540.0,0.052953]
[1735019410222,0.50122722,94545.0,94542.0,0.052952]
[1735019410424,0.50066721,94545.0,94543.0,0.0417]
[1735019411128,0.37278189,94545.0,94543.0,0.0417]
[1735019412017,0.37378189,94545.0,94543.0,0.0417]
[1735019412217,0.50066721,94545.0,94543.0,0.0417]
[1735019412623,0.50266721,94545.0,94543.0,0.0417]
[1735019413018,0.052954,94538.0,94537.0,0.3608]
[1735019414523,0.17983932,94538.0,94537.0,0.3628]
[1735019414714,0.18083932,94538.0,94537.0,0.3628]
[1735019415522,0.053954,94538.0,94537.0,0.3628]
[1735019416126,0.053954,94538.0,94537.0,0.001]
[1735019417631,0.052957,94534.0,94529.0,0.3608]
[1735019417926,0.052957,94534.0,94530.0,0.08178718]
[1735019418128,0.052957,94534.0,94529.0,0.3608]
[1735019418724,0.052957,94534.0,94529.0,0.3648]
[1735019419115,0.052957,94534.0,94530.0,0.04056547]
[1735019420630,0.052958,94533.0,94530.0,0.04056547]
[1735019420821,0.052958,94533.0,94530.0,0.04556547]
[1735019421023,0.052958,94533.0,94530.0,0.006]
[1735019421223,0.052958,94533.0,94530.0,0.001]
[1735019421418,0.052958,94532.0,94530.0,0.006]
[1735019421821,0.052958,94532.0,94530.0,0.001]
[1735019422021,0.052958,94532.0,94530.0,0.006]
[1735019423224,0.052958,94532.0,94530.0,0.005]
[1735019423424,0.052958,94532.0,94530.0,0.006]
[1735019426933,0.06452973,94532.0,94530.0,0.006]
[1735019427626,0.06452973,94532.0,94530.0,0.005]
[1735019428630,0.06452973,94532.0,94530.0,0.004]
[1735019430132,0.052959,94529.0,94528.0,0.3608]
[1735019430332,0.3608,94532.0,94521.0,0.0418]
[1735019430631,0.052963,94523.0,94522.0,0.0817954]
[1735019431429,0.052963,94523.0,94522.0,0.04122594]
[1735019431834,0.052963,94523.0,94522.0,0.04822594]
[1735019432629,0.052963,94523.0,94522.0,0.05022594]
[1735019435233,0.092363,94523.0,94522.0,0.05022594]
[1735019440228,0.05297,94511.0,94506.0,8.544e-05]
[1735019440644,0.05297,94511.0,94507.0,0.3608]
[1735019441342,0.05297,94511.0,94506.0,0.01408544]
[1735019442144,0.05297,94511.0,94507.0,0.005]
[1735019442345,0.07056073,94520.0,94507.0,0.005]
[1735019443046,0.001,94511.0,94507.0,0.3748]
[1735019443439,0.052965,94519.0,94507.0,0.3658]
[1735019443638,0.05297,94511.0,94507.0,0.3658]
[1735019444145,0.08172333,94520.0,94507.0,0.3658]
[1735019444340,0.05297,94510.0,94507.0,0.3608]
[1735019444648,0.052971,94509.0,94507.0,0.3608]
[1735019445150,0.052972,94508.0,94506.0,8.544e-05]
[1735019445341,0.052972,94508.0,94507.0,0.005]
[1735019446248,0.052972,94508.0,94507.0,0.014]
[1735019446547,0.052972,94508.0,94507.0,0.005]
[1735019446741,0.053972,94508.0,94507.0,0.014]
[1735019449056,0.06505893,94508.0,94507.0,0.3748]
[1735019449249,0.06505893,94508.0,94507.0,0.4166]
[1735019450547,0.01208693,94508.0,94507.0,0.4166]
[1735019450749,0.12672968,94525.0,94524.0,0.052962]
[1735019451052,0.15869759,94531.0,94530.0,0.052959]
[1735019452455,0.052952,94542.0,94530.0,0.052959]
[1735019452649,0.052952,94542.0,94535.0,0.3608]
[1735019453558,0.052952,94542.0,94535.0,0.3608]
[1735019453751,0.052953,94541.0,94535.0,0.3608]
[1735019453956,0.3608,94542.0,94531.0,0.25243434]
[1735019454156,0.052958,94532.0,94531.0,0.25243434]
[1735019455056,0.052958,94532.0,94524.0,0.6775415]
[1735019455057,0.052959,94530.0,94524.0,0.3614]
[1735019455255,0.052959,94530.0,94524.0,0.3608]
[1735019456053,0.05296,94529.0,94524.0,0.3608]
[1735019456258,0.05296,94529.0,94524.0,0.3668]
[1735019456458,0.13241521,94540.0,94524.0,0.3668]
[1735019456653,0.05296,94528.0,94524.0,0.3668]
[1735019457153,0.05296,94528.0,94524.0,0.3608]
[1735019457355,0.05296,94528.0,94524.0,0.3668]
[1735019458161,0.05296,94528.0,94524.0,0.3678]
[1735019458657,0.05296,94528.0,94524.0,0.3618]
[1735019458860,0.05296,94528.0,94524.0,0.3678]
[1735019460250,0.06434804,94528.0,94524.0,0.3668]
[1735019460447,0.06434804,94528.0,94524.0,0.3678]
[1735019463667,0.06434804,94528.0,94526.0,0.3608]
[1735019465557,0.06434804,94528.0,94526.0,0.3658]
[1735019465957,0.06434804,94528.0,94526.0,0.3668]
[1735019466367,0.06434804,94528.0,94526.0,0.006]
[1735019479391,0.42514804,94528.0,94526.0,0.006]
[1735019479692,0.0778,94527.0,94526.0,0.25843434]
[1735019480884,0.0778,94527.0,94526.0,0.25343434]
[1735019481087,0.0778,94527.0,94526.0,0.13843434]
[1735019481285,0.13205691,94527.0,94526.0,0.006]
[1735019482792,0.32249402,94527.0,94526.0,0.006]
[1735019484193,0.13205691,94527.0,94526.0,0.006]
[1735019485786,0.052962,94525.0,94502.0,0.00158718]
[1735019485988,0.05297,94510.0,94502.0,0.00158718]
[1735019487292,0.05397,94510.0,94506.0,0.01408544]
[1735019489022,0.052972,94508.0,94506.0,0.01408544]
[1735019490191,0.053972,94508.0,94506.0,0.01208544]
[1735019493294,0.06499322,94508.0,94506.0,0.01208544]
[1735019511303,0.06499322,94508.0,94507.0,0.50680671]
[1735019512005,0.01202122,94508.0,94507.0,0.50680671]
[1735019512507,0.01202122,94508.0,94507.0,0.54741276]
[1735019512710,0.01102122,94508.0,94507.0,0.54741276]
[1735019512901,0.12709125,94511.0,94507.0,0.23627126]
[1735019513202,0.001,94508.0,94507.0,0.2988065]
[1735019513409,0.12709125,94511.0,94507.0,0.2452835]
[1735019513610,0.01029125,94511.0,94510.0,0.41377]
[1735019513909,0.01029125,94511.0,94510.0,0.45438829]
[1735019514408,0.09530646,94514.0,94511.0,0.05297]
[1735019514609,0.09530646,94514.0,94513.0,0.052968]
[1735019514904,0.09530646,94514.0,94513.0,0.09358629]
[1735019515204,0.15847455,94526.0,94524.0,0.052962]
[1735019515605,0.15847455,94534.0,94522.0,0.3608]
[1735019515907,0.15847455,94534.0,94531.0,0.052958]
[1735019516904,0.16952995,94534.0,94531.0,0.052958]
[1735019517201,0.0110554,94534.0,94531.0,0.052958]
[1735019517401,0.052954,94540.0,94531.0,0.052958]
[1735019517910,0.06376442,94540.0,94531.0,0.052958]
[1735019518112,0.052955,94538.0,94531.0,0.002]
[1735019519098,0.001,94534.0,94531.0,0.002]
[1735019519903,0.053955,94538.0,94537.0,0.18947934]
[1735019520505,0.052955,94538.0,94537.0,0.18947934]
[1735019521515,0.053955,94538.0,94537.0,0.18947934]
[1735019522110,0.055955,94538.0,94537.0,0.18947934]
[1735019522500,0.055955,94538.0,94535.0,0.18947934]
[1735019523109,0.003,94538.0,94535.0,0.18947934]
[1735019523417,0.001,94538.0,94535.0,0.18947934]
[1735019523614,0.003,94538.0,94535.0,0.18947934]
[1735019523919,0.002,94538.0,94532.0,0.24243634]
[1735019525116,0.001,94538.0,94532.0,0.24443634]
[1735019525520,0.001,94538.0,94534.0,0.18947934]
[1735019526918,0.001,94538.0,94534.0,0.19047934]
[1735019527121,0.001,94538.0,94534.0,0.001]
[1735019528411,0.052955,94537.0,94534.0,0.001]
[1735019529619,0.053955,94537.0,94534.0,0.001]
[1735019532316,0.06520505,94537.0,94534.0,0.001]
[1735019541632,0.06520505,94537.0,94536.0,0.18947934]
[1735019542832,0.06620505,94537.0,94536.0,0.18947934]
[1735019543725,0.06620505,94537.0,94534.0,0.25283489]
[1735019544829,0.06520505,94537.0,94534.0,0.25283489]
[1735019545035,0.06520505,94537.0,94530.0,0.67696873]
[1735019545434,0.06520505,94537.0,94534.0,0.001]
[1735019546329,0.06520505,94537.0,94530.0,0.67756873]
[1735019546330,0.06520505,94537.0,94531.0,0.31616873]
[1735019547131,0.06420505,94537.0,94534.0,0.001]
[1735019547934,0.06520505,94537.0,94534.0,0.001]
[1735019548638,0.06420505,94537.0,94531.0,0.31816873]
[1735019548833,0.06520505,94537.0,94531.0,0.31816873]
[1735019549034,0.06520505,94537.0,94531.0,0.31616873]
[1735019549234,0.06520505,94537.0,94534.0,0.001]
[1735019549638,0.06520505,94537.0,94531.0,0.31816873]
[1735019549941,0.06520505,94537.0,94532.0,0.35679675]
[1735019550143,0.06520505,94537.0,94532.0,0.31616873]
[1735019551135,0.06420505,94537.0,94532.0,0.31616873]
[1735019551338,0.06520505,94537.0,94531.0,0.31816873]
[1735019551540,0.06520505,94537.0,94532.0,0.04263566]
[1735019551749,0.06520505,94537.0,94532.0,0.002]
[1735019552450,0.01225005,94537.0,94533.0,0.04063699]
[1735019552752,0.01225005,94537.0,94535.0,0.052956]
[1735019553649,0.001,94537.0,94535.0,0.052956]
[1735019554644,0.01104772,94543.0,94532.0,0.31816873]
[1735019554956,0.002,94537.0,94536.0,0.052955]
[1735019555141,0.002,94537.0,94536.0,0.09360289]
[1735019556654,0.22233747,94544.0,94536.0,0.09360289]
[1735019556845,0.001,94543.0,94537.0,0.04064789]
[1735019557541,0.22233747,94544.0,94537.0,0.04064789]
[1735019557751,0.22233747,94544.0,94541.0,0.25334705]
[1735019557949,0.001,94543.0,94541.0,0.25334705]
[1735019558345,0.003,94543.0,94541.0,0.25334705]
[1735019558559,0.003,94543.0,94541.0,0.30630005]
[1735019558958,0.002,94543.0,94541.0,0.30630005]
[1735019559263,0.004,94543.0,94541.0,0.30630005]
[1735019559455,0.004,94543.0,94541.0,0.052953]
[1735019559656,0.002,94543.0,94541.0,0.052953]
[1735019559858,0.005,94543.0,94541.0,0.052953]
[1735019563456,0.005,94543.0,94542.0,0.25331454]
[1735019564652,0.006,94543.0,94542.0,0.25331454]
[1735019565559,0.003,94543.0,94542.0,0.25331454]
[1735019565760,0.006,94543.0,94542.0,0.25331454]
[1735019565952,0.006,94543.0,94541.0,0.30626754]
[1735019566965,0.003,94543.0,94541.0,0.30626754]
[1735019567261,0.005,94543.0,94541.0,0.30626754]
[1735019575670,0.13202445,94543.0,94541.0,0.052953]
[1735019579672,0.005,94543.0,94541.0,0.052953]
[1735019579972,0.005,94543.0,94542.0,0.04063215]
[1735019580875,0.005,94543.0,94541.0,0.052953]
[1735019581360,0.006,94543.0,94541.0,0.052953]
[1735019581564,0.006,94543.0,94542.0,0.04063403]
[1735019583875,0.005,94543.0,94542.0,0.04063403]
[1735019584661,0.006,94543.0,94542.0,0.04063403]
[1735019585075,0.006,94543.0,94541.0,0.052953]
[1735019586278,0.003,94543.0,94541.0,0.052953]
[1735019586572,0.006,94543.0,94541.0,0.052953]
[1735019587176,0.003,94543.0,94541.0,0.052953]
[1735019587372,0.005,94543.0,94541.0,0.052953]
[1735019598090,0.13202682,94543.0,94541.0,0.052953]
[1735019601380,0.13202682,94543.0,94542.0,0.04067114]
[1735019603384,0.12902682,94543.0,94541.0,0.052953]
[1735019603590,0.13202682,94543.0,94542.0,0.04067306]
[1735019603787,0.13002682,94543.0,94542.0,0.04067306]
[1735019603988,0.13302682,94543.0,94542.0,0.04067306]
[1735019604893,0.13202682,94543.0,94542.0,0.04067306]
[1735019605091,0.12902682,94543.0,94542.0,0.04067306]
[1735019605392,0.13002682,94543.0,94542.0,0.04067306]
[1735019605592,0.13302682,94543.0,94542.0,0.04067306]
[1735019606996,0.052956,94535.0,94534.0,0.30872122]
[1735019607189,0.413756,94535.0,94534.0,0.23572122]
[1735019607401,0.413756,94535.0,94534.0,0.27689051]
[1735019607593,0.413756,94535.0,94534.0,0.23572122]
[1735019607998,0.414756,94535.0,94534.0,0.23572122]
[1735019608183,0.414756,94535.0,94534.0,0.23672122]
[1735019608591,0.414756,94535.0,94534.0,0.001]
[1735019608896,0.001,94535.0,94534.0,0.001]
[1735019609090,0.001,94535.0,94534.0,0.053957]
[1735019609491,0.0578158,94535.0,94534.0,0.053957]
[1735019610686,0.001,94535.0,94534.0,0.09424823]
[1735019611089,0.001,94535.0,94534.0,0.053957]
[1735019615302,0.001,94535.0,94534.0,0.0942357]
[1735019623621,0.001,94535.0,94534.0,0.053957]
[1735019624417,0.001,94535.0,94534.0,0.30736847]
[1735019625028,0.1269254,94539.0,94534.0,0.25441147]
[1735019625221,0.1269254,94539.0,94538.0,0.052954]
[1735019625422,0.01091092,94544.0,94538.0,0.052954]
[1735019625423,0.01091092,94544.0,94538.0,0.0402972]
[1735019625624,0.15865675,94546.0,94543.0,0.052952]
[1735019626519,0.12691238,94545.0,94543.0,0.052952]
[1735019628026,0.12991238,94545.0,94543.0,0.052952]
[1735019628819,0.13291238,94545.0,94543.0,0.052952]
[1735019629418,0.006,94545.0,94543.0,0.052952]
[1735019631422,0.006,94545.0,94542.0,0.25337587]
[1735019631630,0.087951,94544.0,94542.0,0.25337587]
[1735019631815,0.0343,94543.0,94542.0,0.25337587]
[1735019633319,0.0343,94543.0,94535.0,0.07062078]
[1735019633619,0.0343,94543.0,94539.0,0.052954]
[1735019634719,0.0383,94543.0,94539.0,0.052954]
[1735019635318,0.004,94543.0,94539.0,0.052954]
[1735019635515,0.003,94543.0,94539.0,0.052954]
[1735019647436,0.055952,94543.0,94539.0,0.052954]
[1735019648334,0.003,94543.0,94539.0,0.052954]
[1735019648538,0.003,94543.0,94537.0,0.25337587]
[1735019648724,0.052954,94539.0,94537.0,0.25337587]
[1735019648930,0.052954,94539.0,94532.0,0.3608]
[1735019648931,0.052957,94533.0,94532.0,0.32997866]
[1735019649227,0.0666,94538.0,94528.0,0.31678903]
[1735019649228,0.052959,94529.0,94528.0,0.31678903]
[1735019650031,0.05847482,94533.0,94521.0,0.3608]
[1735019650240,0.052963,94522.0,94521.0,0.3608]
[1735019650643,0.07062078,94531.0,94519.0,0.11083078]
[1735019650843,0.052965,94520.0,94519.0,0.11083078]
[1735019653146,0.052965,94520.0,94519.0,0.11283078]
[1735019653633,0.053965,94520.0,94519.0,0.11983078]
[1735019654944,0.06492795,94520.0,94519.0,0.11983078]
[1735019656347,0.15998845,94520.0,94519.0,0.11983078]
[1735019657446,0.10702345,94520.0,94519.0,0.11983078]
[1735019657645,0.0960605,94520.0,94519.0,0.11983078]
[1735019658143,0.12690329,94525.0,94524.0,0.052962]
[1735019659050,0.01065448,94535.0,94526.0,0.052961]
[1735019659238,0.12690329,94538.0,94527.0,0.3608]
[1735019660247,0.052953,94541.0,94527.0,0.3608]
[1735019660248,0.12690329,94539.0,94527.0,0.3608]
[1735019660645,0.12690329,94539.0,94527.0,0.3648]
[1735019661739,0.12690329,94539.0,94527.0,0.3608]
[1735019661948,0.12690329,94538.0,94527.0,0.3648]
[1735019662151,0.12690329,94538.0,94528.0,0.07062078]
[1735019663751,0.12690329,94538.0,94529.0,0.052959]
[1735019664751,0.12690329,94539.0,94529.0,0.052959]
[1735019664948,0.052954,94538.0,94529.0,0.12357978]
[1735019665142,0.052954,94538.0,94529.0,0.12657978]
[1735019665750,0.12690329,94539.0,94529.0,0.12657978]
[1735019665751,0.052955,94537.0,94529.0,0.12657978]
[1735019665950,0.052958,94533.0,94529.0,0.003]
[1735019666144,0.3608,94535.0,94529.0,0.003]
[1735019666347,0.052959,94530.0,94529.0,0.003]
[1735019667654,0.052959,94530.0,94527.0,0.3608]
[1735019667852,0.052959,94530.0,94529.0,0.003]
[1735019668644,0.06355684,94530.0,94529.0,0.003]
[1735019669544,0.06355684,94530.0,94527.0,0.3608]
[1735019669744,0.06355684,94530.0,94527.0,0.3648]
[1735019670144,0.06355684,94530.0,94527.0,0.3608]
[1735019670345,0.06355684,94530.0,94529.0,0.003]
[1735019670844,0.06355684,94530.0,94527.0,0.3648]
[1735019672852,0.06355684,94530.0,94529.0,0.003]
[1735019673259,0.06355684,94530.0,94527.0,0.3648]
[1735019682768,0.06355684,94530.0,94527.0,0.004]
[1735019683955,0.12690329,94528.0,94527.0,0.004]
[1735019685358,0.12690329,94529.0,94527.0,0.004]
[1735019685954,0.17986329,94529.0,94527.0,0.004]
[1735019686159,0.12690329,94528.0,94527.0,0.004]
[1735019687261,0.05296,94529.0,94527.0,0.004]
[1735019688355,0.05296,94529.0,94522.0,0.052963]
[1735019688556,0.05296,94529.0,94527.0,0.004]
[1735019688956,0.05296,94529.0,94522.0,0.052963]
[1735019689157,0.05296,94529.0,94527.0,0.004]
[1735019689660,0.15862911,94533.0,94528.0,0.3608]
[1735019691057,0.25554068,94534.0,94528.0,0.3608]
[1735019691264,0.001,94529.0,94528.0,0.3608]
[1735019691473,0.001,94529.0,94528.0,0.40113359]
[1735019691765,0.25554068,94534.0,94528.0,0.40413359]
[1735019692063,0.09691157,94534.0,94529.0,0.04033449]
[1735019695567,0.09691157,94534.0,94529.0,0.04333449]
[1735019695765,0.09691157,94534.0,94529.0,0.003]
[1735019696467,0.04395457,94534.0,94533.0,0.052957]
[1735019696662,0.15862911,94535.0,94533.0,0.09330136]
[1735019696865,0.15862911,94535.0,94534.0,0.04034436]
[1735019697367,0.19043711,94542.0,94534.0,0.04034436]
[1735019697568,0.19043711,94542.0,94535.0,0.04034436]
[1735019697863,0.19043711,94542.0,94533.0,0.053957]
[1735019698067,0.19043711,94542.0,94534.0,0.0403375]
[1735019698255,0.19043711,94542.0,94536.0,0.3608]
[1735019698463,0.20106586,94542.0,94537.0,0.0403375]
[1735019698657,0.15876724,94541.0,94538.0,0.0403375]
[1735019698862,0.15876724,94541.0,94536.0,0.3608]
[1735019699170,0.15876724,94541.0,94537.0,0.09328514]
[1735019699362,0.15876724,94541.0,94538.0,0.04033014]
[1735019699959,0.001,94542.0,94538.0,0.04033014]
[1735019700158,0.052952,94543.0,94538.0,0.04033014]
[1735019700363,0.002,94541.0,94538.0,0.04033014]
[1735019701073,0.002,94541.0,94537.0,0.052955]
[1735019701775,0.003,94541.0,94537.0,0.052955]
[1735019702169,0.12694621,94539.0,94538.0,0.04032125]
[1735019703661,0.12894621,94539.0,94537.0,0.052955]
[1735019703858,0.002,94539.0,94537.0,0.052955]
[1735019704063,0.002,94539.0,94538.0,0.3608]
[1735019704874,0.003,94539.0,94538.0,0.3608]
[1735019706972,0.001,94539.0,94538.0,0.3608]
[1735019707174,0.003,94539.0,94538.0,0.3608]
[1735019720578,0.12994621,94539.0,94538.0,0.3608]
[1735019721879,0.003,94539.0,94538.0,0.3608]
[1735019726387,0.003,94539.0,94537.0,0.30630596]
[1735019727082,0.003,94539.0,94538.0,0.3608]
[1735019727289,0.003,94539.0,94538.0,0.61415096]
[1735019727783,0.002,94539.0,94538.0,0.61415096]
[1735019728492,0.001,94539.0,94538.0,0.61415096]
[1735019728678,0.003,94539.0,94538.0,0.61415096]
[1735019728987,0.003,94539.0,94538.0,0.3608]
[1735019730884,0.003,94539.0,94538.0,0.40116515]
[1735019737610,0.22217663,94559.0,94538.0,0.40116515]